[Event "16th EWICC 2015"]
[Site "Kutaisi"]
[Date "2015.06.01"]
[Round "3"]
[White "Arakhamia-Grant, Ketevan"]
[Black "Dordzhieva, Dinara"]
[Result "1-0"]
[ECO "B51"]
[WhiteElo "2393"]
[BlackElo "2242"]
[Annotator "Robot 11"]
[PlyCount "91"]
[EventDate "2015.??.??"]
[EventCountry "GEO"]
[TimeControl "900+10"]

1. e4 {[%emt 0:00:02]} c5 {[%emt 0:00:04]} 2. Nf3 {[%emt 0:00:03]} d6 {[%emt 0:
00:03]} 3. Bb5+ {[%emt 0:00:03]} Nc6 {[%emt 0:00:28]} 4. O-O {[%emt 0:00:03]}
Bd7 {[%emt 0:00:02]} 5. c3 {[%emt 0:00:14]} Nf6 {[%emt 0:00:03]} 6. Re1 {[%emt
0:00:02]} a6 {[%emt 0:00:03]} 7. Ba4 {[%emt 0:00:03]} b5 {[%emt 0:00:23]} 8.
Bc2 {[%emt 0:00:02]} Bg4 {[%emt 0:00:20]} 9. d3 {[%emt 0:00:04]} e6 {[%emt 0:
02:22]} 10. Nbd2 {[%emt 0:00:02]} Be7 {[%emt 0:00:13]} 11. h3 {[%emt 0:00:03]}
Bh5 {[%emt 0:00:03]} 12. Nf1 {[%emt 0:00:08]} h6 {[%emt 0:01:50]} 13. Ng3 {
[%emt 0:00:42]} Bg6 {[%emt 0:00:04]} 14. d4 {[%emt 0:00:08]} cxd4 {[%emt 0:00:
59]} 15. cxd4 {[%emt 0:00:01]} Rc8 {[%emt 0:00:34]} 16. Bb1 {[%emt 0:00:19]}
Nh5 {[%emt 0:02:02]} 17. a4 {[%emt 0:02:44]} Nxg3 {[%emt 0:00:51]} 18. fxg3 {
[%emt 0:00:02]} b4 {[%emt 0:02:14]} 19. Bd3 {[%emt 0:00:29]} Qb6 {[%emt 0:01:
53]} 20. Be3 {[%emt 0:00:14]} Qb7 {[%emt 0:00:01]} 21. d5 {[%emt 0:05:43]} Nd8
{[%emt 0:00:05]} 22. Qe2 {[%emt 0:00:24]} Ra8 {[%emt 0:00:20]} 23. Rac1 {[%emt
0:02:23]} O-O {[%emt 0:00:15]} 24. Red1 {[%emt 0:00:13]} Bf6 {[%emt 0:01:04]}
25. Qf2 {[%emt 0:03:39]} Re8 {[%emt 0:00:55]} 26. Bd4 {[%emt 0:00:07]} Bxd4 {
[%emt 0:00:37]} 27. Qxd4 {[%emt 0:00:02]} e5 {[%emt 0:00:16]} 28. Qf2 {[%emt 0:
00:29]} Qd7 {[%emt 0:00:19]} 29. b3 {[%emt 0:00:51]} Nb7 {[%emt 0:00:03]} 30.
Nh4 {[%emt 0:00:06]} Nc5 {[%emt 0:00:23]} 31. Rc4 {[%emt 0:00:05]} Nxb3 {[%emt
0:00:30]} 32. Rxb4 {[%emt 0:00:05]} Nc5 {[%emt 0:00:03]} 33. Bc2 {[%emt 0:00:
09]} Rab8 {[%emt 0:00:17]} 34. Qd2 {[%emt 0:00:18]} Qa7 {[%emt 0:00:29]} 35.
Kh2 {[%emt 0:00:02]} a5 {[%emt 0:00:01]} 36. Rc4 {[%emt 0:00:33]} Rb2 {[%emt 0:
00:01]} 37. Qc3 {[%emt 0:00:14]} Reb8 {[%emt 0:00:00]} 38. Rf1 {[%emt 0:00:03]}
R2b4 {[%emt 0:00:36]} 39. Rxb4 {[%emt 0:00:10]} axb4 {[%emt 0:00:06]} 40. Qf3 {
[%emt 0:00:08]} b3 {[%emt 0:00:12]} 41. Bb1 {[%emt 0:00:01]} Qxa4 {[%emt 0:00:
30]} 42. Nxg6 {[%emt 0:00:12]} fxg6 {[%emt 0:00:01]} 43. Qf7+ {[%emt 0:00:01]}
Kh7 {[%emt 0:00:00]} 44. Qc7 {[%emt 0:00:01]} Qb5 {[%emt 0:00:23]} 45. Rf7 Rb7
46. Rxg7+ {[%emt 0:00:08]} 1-0

[Event "16th EWICC 2015"]
[Site "Kutaisi"]
[Date "2015.06.01"]
[Round "3"]
[White "Batsiashvili, Nino"]
[Black "Mammadzada, Gunay"]
[Result "1-0"]
[ECO "D01"]
[WhiteElo "2473"]
[BlackElo "2336"]
[Annotator "Robot 11"]
[PlyCount "87"]
[EventDate "2015.??.??"]
[EventCountry "GEO"]
[TimeControl "900+10"]

1. d4 {[%emt 0:00:01]} d5 {[%emt 0:00:02]} 2. Nc3 {[%emt 0:00:02]} Nf6 {[%emt
0:00:03]} 3. Bg5 {[%emt 0:00:01]} Bf5 {[%emt 0:00:19]} 4. e3 {[%emt 0:00:20]}
e6 {[%emt 0:00:18]} 5. Bd3 {[%emt 0:00:02]} Bxd3 {[%emt 0:00:58]} 6. cxd3 {
[%emt 0:00:02]} c6 {[%emt 0:00:38]} 7. f4 {[%emt 0:00:09]} Nbd7 {[%emt 0:00:07]
} 8. Nf3 {[%emt 0:00:02]} Be7 {[%emt 0:00:29]} 9. O-O {[%emt 0:00:03]} h6 {
[%emt 0:00:13]} 10. Bh4 {[%emt 0:00:10]} O-O {[%emt 0:00:26]} 11. Ne5 {[%emt 0:
00:26]} Ne8 {[%emt 0:00:38]} 12. Bxe7 {[%emt 0:00:19]} Qxe7 {[%emt 0:00:01]}
13. Rf3 {[%emt 0:00:21]} Nxe5 {[%emt 0:01:19]} 14. fxe5 {[%emt 0:01:53]} f6 {
[%emt 0:00:08]} 15. Ne2 {[%emt 0:00:23]} fxe5 {[%emt 0:00:36]} 16. Rxf8+ {
[%emt 0:00:04]} Qxf8 {[%emt 0:01:57]} 17. dxe5 {[%emt 0:00:02]} Nc7 {[%emt 0:
00:29]} 18. d4 {[%emt 0:00:02]} Qf5 {[%emt 0:01:13]} 19. Ng3 {[%emt 0:01:38]}
Qg5 {[%emt 0:00:02]} 20. Qb3 {[%emt 0:00:12]} Rf8 {[%emt 0:00:18]} 21. Rf1 {
[%emt 0:00:01]} Rxf1+ {[%emt 0:00:43]} 22. Nxf1 {[%emt 0:00:02]} b6 {[%emt 0:
01:32]} 23. Qa4 {[%emt 0:00:30]} Nb5 {[%emt 0:00:29]} 24. Qa6 {[%emt 0:00:03]}
Qd8 {[%emt 0:01:22]} 25. a4 {[%emt 0:00:08]} Nc7 {[%emt 0:00:11]} 26. Qxa7 {
[%emt 0:00:05]} Ne8 {[%emt 0:00:18]} 27. Qb7 {[%emt 0:00:27]} Qc7 {[%emt 0:00:
08]} 28. Qxc7 {[%emt 0:00:10]} Nxc7 {[%emt 0:00:02]} 29. Kf2 {[%emt 0:00:13]}
Na6 {[%emt 0:00:35]} 30. Ke2 {[%emt 0:00:18]} Kf7 {[%emt 0:00:02]} 31. Kd3 {
[%emt 0:00:09]} Ke7 {[%emt 0:00:22]} 32. Kc3 {[%emt 0:00:09]} Kd7 {[%emt 0:00:
37]} 33. Ng3 {[%emt 0:00:01]} Ke7 {[%emt 0:01:03]} 34. e4 {[%emt 0:01:02]} Nc7
35. b4 {[%emt 0:00:10]} g6 {[%emt 0:01:51]} 36. Kb3 {[%emt 0:00:14]} h5 {[%emt
0:00:04]} 37. exd5 {[%emt 0:00:04]} cxd5 {[%emt 0:00:45]} 38. h4 Na6 {[%emt 0:
00:22]} 39. Ne2 {[%emt 0:00:18]} Kf7 40. Nf4 {[%emt 0:00:56]} Nc7 {[%emt 0:00:
16]} 41. b5 {[%emt 0:00:01]} Kg7 {[%emt 0:00:07]} 42. Kb4 {[%emt 0:00:01]} Kf7
{[%emt 0:00:21]} 43. a5 {[%emt 0:00:04]} Na8 {[%emt 0:00:01]} 44. g3 1-0

[Event "16th EWICC 2015"]
[Site "Kutaisi"]
[Date "2015.06.01"]
[Round "3"]
[White "Charkhalashvili, Inga"]
[Black "Gunina, Valentina"]
[Result "1/2-1/2"]
[ECO "D17"]
[WhiteElo "2318"]
[BlackElo "2535"]
[Annotator "Robot 11"]
[PlyCount "110"]
[EventDate "2015.??.??"]
[EventCountry "GEO"]
[TimeControl "900+10"]

1. d4 {[%emt 0:00:01]} d5 {[%emt 0:00:06]} 2. c4 {[%emt 0:00:02]} c6 {[%emt 0:
00:02]} 3. Nc3 {[%emt 0:00:02]} Nf6 {[%emt 0:00:11]} 4. Nf3 {[%emt 0:00:02]}
dxc4 {[%emt 0:00:04]} 5. a4 {[%emt 0:00:02]} Bf5 {[%emt 0:00:03]} 6. Ne5 {
[%emt 0:00:09]} Nbd7 {[%emt 0:00:02]} 7. Nxc4 {[%emt 0:00:02]} Nb6 {[%emt 0:00:
01]} 8. e3 {[%emt 0:00:09]} e6 {[%emt 0:00:19]} 9. Qb3 {[%emt 0:00:07]} Qc7 {
[%emt 0:00:18]} 10. a5 {[%emt 0:00:45]} Nxc4 {[%emt 0:00:03]} 11. Bxc4 {[%emt
0:00:01]} Bd6 {[%emt 0:00:02]} 12. h3 {[%emt 0:00:06]} O-O {[%emt 0:00:04]} 13.
O-O {[%emt 0:00:16]} Rad8 {[%emt 0:00:08]} 14. Bd2 {[%emt 0:00:39]} e5 {[%emt
0:00:10]} 15. d5 {[%emt 0:04:53]} e4 {[%emt 0:00:06]} 16. Rfd1 {[%emt 0:00:24]}
Qe7 {[%emt 0:00:07]} 17. dxc6 {[%emt 0:01:33]} bxc6 {[%emt 0:00:26]} 18. Ne2 {
[%emt 0:00:44]} Nh5 {[%emt 0:00:25]} 19. Nf4 {[%emt 0:00:52]} Nxf4 {[%emt 0:00:
05]} 20. exf4 {[%emt 0:00:01]} Rb8 {[%emt 0:00:01]} 21. Qg3 {[%emt 0:00:35]}
Bb4 {[%emt 0:01:16]} 22. Bc3 {[%emt 0:00:03]} Bxc3 {[%emt 0:00:04]} 23. Qxc3 {
[%emt 0:00:50]} Qh4 {[%emt 0:00:05]} 24. Qe5 {[%emt 0:00:16]} g6 {[%emt 0:00:
54]} 25. Ra3 {[%emt 0:01:12]} Rbe8 {[%emt 0:01:32]} 26. Qc7 {[%emt 0:00:02]}
Re7 {[%emt 0:00:09]} 27. Qxc6 {[%emt 0:00:12]} Qxf4 {[%emt 0:00:14]} 28. Qf6 {
[%emt 0:00:24]} e3 {[%emt 0:03:53]} 29. fxe3 {[%emt 0:00:59]} Qe4 {[%emt 0:02:
30]} 30. Bd5 {[%emt 0:00:28]} Qc2 {[%emt 0:00:06]} 31. Rf1 {[%emt 0:00:34]} Rd7
{[%emt 0:00:37]} 32. Rc3 {[%emt 0:00:27]} Qe2 {[%emt 0:02:36]} 33. Rxf5 {[%emt
0:00:36]} Qd1+ {[%emt 0:00:01]} 34. Kh2 {[%emt 0:00:11]} Rxd5 {[%emt 0:00:02]}
35. Rxd5 {[%emt 0:00:06]} Qxd5 {[%emt 0:00:02]} 36. b4 {[%emt 0:00:10]} Rb8 {
[%emt 0:00:34]} 37. Rc7 {[%emt 0:00:12]} a6 {[%emt 0:00:42]} 38. e4 {[%emt 0:
00:12]} Qb3 {[%emt 0:00:04]} 39. e5 {[%emt 0:00:07]} Re8 {[%emt 0:00:47]} 40.
Re7 {[%emt 0:00:34]} Rxe7 {[%emt 0:00:34]} 41. Qxe7 {[%emt 0:00:02]} h5 {[%emt
0:00:02]} 42. Qe8+ {[%emt 0:00:55]} Kg7 {[%emt 0:00:03]} 43. Qe7 {[%emt 0:00:
08]} Qc4 {[%emt 0:00:02]} 44. Qf6+ {[%emt 0:00:19]} Kg8 {[%emt 0:00:14]} 45.
Qd8+ {[%emt 0:00:47]} Kg7 {[%emt 0:00:07]} 46. Qd2 {[%emt 0:00:30]} Qe4 {[%emt
0:00:18]} 47. Qb2 {[%emt 0:00:23]} Qf4+ {[%emt 0:00:16]} 48. Kg1 {[%emt 0:00:
18]} Qe3+ {[%emt 0:00:07]} 49. Kh1 {[%emt 0:00:06]} Kh6 {[%emt 0:00:14]} 50.
Kh2 {[%emt 0:00:12]} Kg5 {[%emt 0:00:05]} 51. b5 {[%emt 0:00:10]} axb5 {[%emt
0:00:06]} 52. Qxb5 {[%emt 0:00:02]} Qf4+ {[%emt 0:00:01]} 53. Kg1 {[%emt 0:00:
04]} Qe3+ {[%emt 0:00:03]} 54. Kh2 {[%emt 0:00:05]} Qf4+ {[%emt 0:00:04]} 55.
Kg1 {[%emt 0:00:01]} Qe3+ {[%emt 0:00:01]} 1/2-1/2

[Event "16th EWICC 2015"]
[Site "Kutaisi"]
[Date "2015.06.01"]
[Round "3"]
[White "Charochkina, Daria"]
[Black "Stefanova, Antoaneta"]
[Result "0-1"]
[ECO "C44"]
[WhiteElo "2391"]
[BlackElo "2512"]
[Annotator "Robot 11"]
[PlyCount "84"]
[EventDate "2015.??.??"]
[EventCountry "GEO"]
[TimeControl "900+10"]

1. e4 {[%emt 0:00:02]} e5 {[%emt 0:00:01]} 2. Nf3 {[%emt 0:00:02]} Nc6 {[%emt
0:00:01]} 3. d4 {[%emt 0:00:01]} exd4 {[%emt 0:00:09]} 4. Nxd4 {[%emt 0:00:02]}
Bb4+ {[%emt 0:00:05]} 5. c3 {[%emt 0:00:13]} Bc5 {[%emt 0:00:02]} 6. Be3 {
[%emt 0:00:14]} Bb6 {[%emt 0:00:05]} 7. Nf5 {[%emt 0:00:48]} g6 {[%emt 0:00:13]
} 8. Bxb6 {[%emt 0:00:02]} axb6 {[%emt 0:00:01]} 9. Ne3 {[%emt 0:00:03]} Nf6 {
[%emt 0:00:20]} 10. f3 {[%emt 0:00:02]} Qe7 {[%emt 0:00:01]} 11. Be2 {[%emt 0:
00:40]} O-O {[%emt 0:03:56]} 12. Qd2 {[%emt 0:01:08]} d5 {[%emt 0:04:01]} 13.
exd5 {[%emt 0:01:17]} Rd8 {[%emt 0:03:46]} 14. c4 {[%emt 0:01:21]} Qe5 {[%emt
0:00:47]} 15. Nc3 {[%emt 0:03:52]} Nd4 {[%emt 0:00:32]} 16. O-O-O {[%emt 0:00:
02]} c5 {[%emt 0:00:15]} 17. Bd3 {[%emt 0:01:25]} Rxa2 {[%emt 0:00:23]} 18. Qf2
{[%emt 0:02:06]} Ra1+ {[%emt 0:00:02]} 19. Kd2 {[%emt 0:00:11]} Rxd1+ {[%emt 0:
00:34]} 20. Nexd1 {[%emt 0:00:21]} Re8 {[%emt 0:00:14]} 21. g3 {[%emt 0:01:50]}
Bf5 {[%emt 0:00:48]} 22. f4 {[%emt 0:00:51]} Qe7 {[%emt 0:00:33]} 23. Bxf5 {
[%emt 0:00:55]} gxf5 {[%emt 0:00:01]} 24. Qe3 {[%emt 0:00:21]} Nb3+ {[%emt 0:
00:56]} 25. Kc2 {[%emt 0:00:00]} Nd4+ {[%emt 0:00:21]} 26. Kd2 {[%emt 0:00:04]}
Ne4+ {[%emt 0:00:06]} 27. Nxe4 {[%emt 0:00:05]} fxe4 {[%emt 0:00:01]} 28. Nc3 {
[%emt 0:00:09]} f5 {[%emt 0:00:06]} 29. g4 {[%emt 0:00:02]} fxg4 {[%emt 0:00:
08]} 30. h3 {[%emt 0:00:33]} Nf5 {[%emt 0:00:09]} 31. Qe2 {[%emt 0:00:02]} h5 {
[%emt 0:00:27]} 32. Rg1 {[%emt 0:00:52]} Qd6 {[%emt 0:00:18]} 33. hxg4 Qxf4+ {
[%emt 0:00:01]} 34. Ke1 {[%emt 0:00:38]} Ng3 {[%emt 0:00:25]} 35. Qf2 {[%emt 0:
00:16]} Qxf2+ {[%emt 0:00:23]} 36. Kxf2 {[%emt 0:00:01]} h4 {[%emt 0:00:01]}
37. Ne2 {[%emt 0:00:13]} e3+ {[%emt 0:00:25]} 38. Ke1 {[%emt 0:00:07]} Ne4 {
[%emt 0:00:18]} 39. Rh1 {[%emt 0:00:20]} Ng5 {[%emt 0:00:01]} 40. Kd1 {[%emt 0:
00:00]} Re4 {[%emt 0:00:10]} 41. Rxh4 {[%emt 0:00:09]} Rxc4 {[%emt 0:00:04]}
42. Rh3 {[%emt 0:00:21]} Nxh3 {[%emt 0:00:08]} 0-1

[Event "16th EWICC 2015"]
[Site "Kutaisi"]
[Date "2015.06.01"]
[Round "3"]
[White "Choladze, Mariam"]
[Black "Mikadze, Miranda"]
[Result "1-0"]
[ECO "B01"]
[WhiteElo "1989"]
[BlackElo "2233"]
[Annotator "Robot 11"]
[PlyCount "67"]
[EventDate "2015.??.??"]
[EventCountry "GEO"]
[TimeControl "900+10"]

1. e4 {[%emt 0:00:03]} d5 {[%emt 0:00:00]} 2. exd5 {[%emt 0:00:02]} Qxd5 {
[%emt 0:00:01]} 3. Nc3 {[%emt 0:00:03]} Qd6 {[%emt 0:00:01]} 4. d4 {[%emt 0:00:
05]} Nf6 {[%emt 0:00:02]} 5. Nf3 {[%emt 0:00:02]} c6 {[%emt 0:00:01]} 6. Ne5 {
[%emt 0:00:10]} Nbd7 {[%emt 0:00:01]} 7. f4 {[%emt 0:00:01]} Nb6 {[%emt 0:00:
14]} 8. g4 {[%emt 0:00:03]} g6 {[%emt 0:00:24]} 9. Bg2 {[%emt 0:00:03]} Be6 {
[%emt 0:00:06]} 10. O-O {[%emt 0:00:07]} Bg7 {[%emt 0:00:08]} 11. g5 {[%emt 0:
00:18]} Nfd7 {[%emt 0:00:13]} 12. Ne4 {[%emt 0:00:21]} Qc7 {[%emt 0:00:04]} 13.
b3 {[%emt 0:00:15]} Rd8 {[%emt 0:01:29]} 14. Qe2 {[%emt 0:00:03]} O-O {[%emt 0:
00:17]} 15. Bb2 {[%emt 0:00:12]} c5 {[%emt 0:00:26]} 16. dxc5 {[%emt 0:02:11]}
Nxc5 {[%emt 0:00:09]} 17. c4 {[%emt 0:00:05]} Bf5 {[%emt 0:01:48]} 18. Ng3 {
[%emt 0:01:56]} Bd3 {[%emt 0:02:47]} 19. Nxd3 {[%emt 0:00:11]} Nxd3 {[%emt 0:
00:01]} 20. Bxg7 {[%emt 0:00:25]} Kxg7 {[%emt 0:00:01]} 21. Qe3 {[%emt 0:00:39]
} Nc5 {[%emt 0:00:50]} 22. f5 {[%emt 0:00:29]} Rd3 {[%emt 0:00:01]} 23. f6+ {
[%emt 0:00:26]} exf6 {[%emt 0:00:19]} 24. gxf6+ {[%emt 0:00:01]} Kh8 {[%emt 0:
00:01]} 25. Qh6 {[%emt 0:01:28]} Ne6 {[%emt 0:00:21]} 26. Rae1 {[%emt 0:00:36]}
Rfd8 {[%emt 0:03:03]} 27. Kh1 {[%emt 0:00:43]} Rg8 {[%emt 0:05:46]} 28. Rxe6 {
[%emt 0:00:50]} fxe6 {[%emt 0:00:01]} 29. f7 {[%emt 0:00:01]} Nd7 {[%emt 0:00:
00]} 30. fxg8=Q+ {[%emt 0:01:01]} Kxg8 {[%emt 0:00:02]} 31. Be4 {[%emt 0:00:23]
} Rd6 {[%emt 0:00:53]} 32. Bxg6 {[%emt 0:00:56]} e5 {[%emt 0:00:01]} 33. Bxh7+
{[%emt 0:00:08]} Kh8 {[%emt 0:00:03]} 34. Bg6+ 1-0

[Event "16th EWICC 2015"]
[Site "Kutaisi"]
[Date "2015.06.01"]
[Round "3"]
[White "Esadze, Tamar"]
[Black "Giorgadze, Elene"]
[Result "1-0"]
[ECO "C72"]
[WhiteElo "1697"]
[BlackElo "1185"]
[Annotator "Robot 11"]
[PlyCount "32"]
[EventDate "2015.??.??"]
[EventCountry "GEO"]
[TimeControl "900+10"]

1. e4 {[%emt 0:00:01]} e5 {[%emt 0:00:02]} 2. Nf3 Nc6 3. Bb5 {[%emt 0:00:03]}
a6 {[%emt 0:00:05]} 4. Ba4 {[%emt 0:00:01]} d6 {[%emt 0:00:08]} 5. O-O {[%emt
0:00:06]} Bg4 {[%emt 0:00:38]} 6. c3 {[%emt 0:00:13]} b5 {[%emt 0:02:00]} 7.
Bc2 {[%emt 0:00:02]} Qf6 {[%emt 0:00:19]} 8. a4 {[%emt 0:01:17]} Na7 {[%emt 0:
01:14]} 9. axb5 {[%emt 0:01:20]} Nxb5 {[%emt 0:00:22]} 10. Bd3 {[%emt 0:00:36]}
c6 {[%emt 0:00:45]} 11. h3 {[%emt 0:01:17]} h5 {[%emt 0:01:40]} 12. Qe2 {[%emt
0:01:39]} Nc7 {[%emt 0:02:53]} 13. Qe3 {[%emt 0:02:20]} Be7 {[%emt 0:02:25]}
14. Nh2 {[%emt 0:01:43]} Qh4 {[%emt 0:04:34]} 15. Qb6 {[%emt 0:01:59]} Kd7 {
[%emt 0:00:13]} 16. Bxa6 {[%emt 0:01:06]} Ke8 1-0

[Event "16th EWICC 2015"]
[Site "Kutaisi"]
[Date "2015.06.01"]
[Round "3"]
[White "Gaprindashvili, Nona"]
[Black "Choladze, Tea"]
[Result "1-0"]
[ECO "D63"]
[WhiteElo "2302"]
[BlackElo "1755"]
[Annotator "Robot 11"]
[PlyCount "107"]
[EventDate "2015.??.??"]
[EventCountry "GEO"]
[TimeControl "900+10"]

1. d4 {[%emt 0:00:01]} d5 {[%emt 0:00:02]} 2. c4 {[%emt 0:00:01]} e6 {[%emt 0:
00:03]} 3. Nc3 {[%emt 0:00:04]} Nf6 {[%emt 0:00:02]} 4. Nf3 {[%emt 0:00:05]} c6
{[%emt 0:00:08]} 5. Bg5 {[%emt 0:00:11]} Be7 {[%emt 0:00:24]} 6. e3 {[%emt 0:
00:03]} O-O {[%emt 0:00:11]} 7. Rc1 {[%emt 0:00:05]} Nbd7 {[%emt 0:00:04]} 8.
h3 {[%emt 0:00:21]} Re8 {[%emt 0:00:12]} 9. Bd3 {[%emt 0:00:05]} Nf8 {[%emt 0:
00:04]} 10. O-O {[%emt 0:00:14]} Ng6 {[%emt 0:01:08]} 11. Re1 {[%emt 0:00:28]}
Nd7 {[%emt 0:00:12]} 12. Bxe7 {[%emt 0:00:04]} Qxe7 {[%emt 0:00:19]} 13. a3 {
[%emt 0:00:25]} dxc4 {[%emt 0:00:18]} 14. Bxc4 {[%emt 0:00:02]} Nb6 {[%emt 0:
00:23]} 15. Ba2 {[%emt 0:00:05]} e5 {[%emt 0:00:15]} 16. dxe5 {[%emt 0:00:08]}
Nxe5 {[%emt 0:00:05]} 17. Nd4 {[%emt 0:00:01]} Qh4 {[%emt 0:00:42]} 18. Nf3 {
[%emt 0:00:41]} Qe7 {[%emt 0:01:08]} 19. Bb1 {[%emt 0:00:32]} Bd7 {[%emt 0:00:
42]} 20. Qe2 {[%emt 0:01:44]} Ng6 {[%emt 0:01:13]} 21. Qc2 {[%emt 0:00:43]}
Rad8 {[%emt 0:01:32]} 22. Red1 {[%emt 0:00:31]} Bc8 {[%emt 0:00:21]} 23. Rxd8
Rxd8 {[%emt 0:00:02]} 24. Rd1 {[%emt 0:00:05]} Rxd1+ {[%emt 0:00:07]} 25. Qxd1
{[%emt 0:00:02]} Qd7 {[%emt 0:00:13]} 26. Qxd7 {[%emt 0:01:15]} Bxd7 {[%emt 0:
00:08]} 27. b4 {[%emt 0:00:02]} Nc4 {[%emt 0:00:23]} 28. a4 {[%emt 0:00:02]} b5
{[%emt 0:00:32]} 29. axb5 {[%emt 0:00:25]} cxb5 {[%emt 0:00:01]} 30. Bd3 {
[%emt 0:00:28]} a6 {[%emt 0:00:08]} 31. Bxc4 {[%emt 0:00:03]} bxc4 {[%emt 0:00:
02]} 32. Kf1 {[%emt 0:00:08]} Ne7 {[%emt 0:00:21]} 33. Nd4 {[%emt 0:00:35]} Nc6
{[%emt 0:00:24]} 34. Nxc6 {[%emt 0:00:11]} Bxc6 {[%emt 0:00:01]} 35. e4 {[%emt
0:00:19]} Kf8 {[%emt 0:01:25]} 36. f3 {[%emt 0:00:22]} Ke7 {[%emt 0:00:07]} 37.
Ke2 {[%emt 0:00:01]} Kd6 {[%emt 0:00:23]} 38. Ke3 {[%emt 0:00:04]} Ke5 {[%emt
0:00:30]} 39. f4+ {[%emt 0:00:05]} Kd6 {[%emt 0:00:02]} 40. Kd4 {[%emt 0:00:11]
} f5 {[%emt 0:00:38]} 41. e5+ {[%emt 0:00:04]} Ke6 {[%emt 0:00:47]} 42. g3 {
[%emt 0:00:03]} Bb5 {[%emt 0:00:43]} 43. Kc5 {[%emt 0:00:06]} h5 {[%emt 0:00:
28]} 44. h4 {[%emt 0:00:14]} g6 {[%emt 0:00:30]} 45. Nd5 {[%emt 0:00:34]} Kf7 {
[%emt 0:00:58]} 46. Ne3 {[%emt 0:01:02]} c3 {[%emt 0:00:24]} 47. Kd4 {[%emt 0:
00:02]} Ke7 {[%emt 0:01:26]} 48. Kxc3 {[%emt 0:00:03]} Kd7 {[%emt 0:00:09]} 49.
Kd4 {[%emt 0:00:02]} Ke6 {[%emt 0:00:13]} 50. Kc5 {[%emt 0:00:04]} Bd3 {[%emt
0:00:25]} 51. Nd5 {[%emt 0:00:05]} Be2 {[%emt 0:00:11]} 52. Nc7+ {[%emt 0:00:
07]} Kd7 {[%emt 0:00:02]} 53. Kb6 {[%emt 0:00:01]} Bd3 {[%emt 0:00:07]} 54.
Nxa6 {[%emt 0:00:04]} 1-0

[Event "16th EWICC 2015"]
[Site "Kutaisi"]
[Date "2015.06.01"]
[Round "3"]
[White "Gognadze, Tsira"]
[Black "Khomeriki, Ketevan"]
[Result "0-1"]
[ECO "C50"]
[WhiteElo "1144"]
[BlackElo "1861"]
[Annotator "Robot 11"]
[PlyCount "50"]
[EventDate "2015.??.??"]
[EventCountry "GEO"]
[TimeControl "900+10"]

1. e4 {[%emt 0:00:01]} e5 {[%emt 0:00:01]} 2. Nf3 {[%emt 0:00:01]} Nc6 {[%emt
0:00:02]} 3. Bc4 {[%emt 0:00:00]} Bc5 {[%emt 0:00:03]} 4. O-O {[%emt 0:00:03]}
Nf6 {[%emt 0:00:02]} 5. Nc3 {[%emt 0:00:03]} d6 {[%emt 0:00:07]} 6. d3 {[%emt
0:00:02]} Bg4 {[%emt 0:00:04]} 7. h3 {[%emt 0:00:00]} Bh5 {[%emt 0:00:13]} 8.
Be3 {[%emt 0:00:02]} Bd4 {[%emt 0:00:09]} 9. Rb1 {[%emt 0:00:53]} a6 {[%emt 0:
00:21]} 10. g4 {[%emt 0:00:45]} Nxg4 {[%emt 0:00:33]} 11. Bg5 {[%emt 0:02:23]}
Qd7 {[%emt 0:01:41]} 12. Nxd4 {[%emt 0:00:42]} Nxd4 {[%emt 0:01:27]} 13. Bxf7+
{[%emt 0:02:34]} Kxf7 {[%emt 0:00:38]} 14. hxg4 {[%emt 0:02:08]} Bxg4 {[%emt 0:
00:07]} 15. Qc1 {[%emt 0:00:51]} Bh3 {[%emt 0:00:17]} 16. Qe3 {[%emt 0:01:37]}
Qg4+ {[%emt 0:00:48]} 17. Qg3 {[%emt 0:00:13]} Nf3+ {[%emt 0:00:29]} 18. Kh1 {
[%emt 0:00:33]} Qh5 {[%emt 0:00:06]} 19. Bh4 {[%emt 0:01:46]} Bxf1 {[%emt 0:00:
13]} 20. Rxf1 {[%emt 0:00:37]} Nxh4 {[%emt 0:00:09]} 21. Kg1 {[%emt 0:00:34]}
Rhf8 {[%emt 0:00:14]} 22. Ne2 {[%emt 0:00:43]} Kg8 {[%emt 0:00:17]} 23. f4 {
[%emt 0:01:20]} Qxe2 {[%emt 0:01:00]} 24. Qxh4 {[%emt 0:00:09]} Qe3+ {[%emt 0:
00:04]} 25. Kg2 {[%emt 0:00:55]} Rxf4 {[%emt 0:00:17]} 0-1

[Event "16th EWICC 2015"]
[Site "Kutaisi"]
[Date "2015.06.01"]
[Round "3"]
[White "Ibrahimova, Sabina"]
[Black "Gaponenko, Inna"]
[Result "0-1"]
[ECO "B77"]
[WhiteElo "2272"]
[BlackElo "2391"]
[Annotator "Robot 11"]
[PlyCount "110"]
[EventDate "2015.??.??"]
[EventCountry "GEO"]
[TimeControl "900+10"]

1. e4 {[%emt 0:00:01]} c5 {[%emt 0:00:01]} 2. Nf3 {[%emt 0:00:02]} d6 {[%emt 0:
00:01]} 3. d4 {[%emt 0:00:02]} cxd4 {[%emt 0:00:01]} 4. Nxd4 {[%emt 0:00:02]}
Nf6 {[%emt 0:00:01]} 5. Nc3 {[%emt 0:00:02]} g6 {[%emt 0:00:01]} 6. Be3 {[%emt
0:00:06]} Bg7 {[%emt 0:00:01]} 7. f3 {[%emt 0:00:02]} O-O {[%emt 0:00:01]} 8.
Bc4 {[%emt 0:00:02]} Nc6 {[%emt 0:00:01]} 9. Qd2 {[%emt 0:00:01]} Bd7 {[%emt 0:
00:01]} 10. h4 {[%emt 0:00:01]} Ne5 {[%emt 0:00:01]} 11. Bb3 {[%emt 0:00:02]}
Qa5 {[%emt 0:00:01]} 12. O-O-O {[%emt 0:00:08]} Rfc8 {[%emt 0:00:01]} 13. g4 {
[%emt 0:00:32]} b5 {[%emt 0:00:01]} 14. h5 {[%emt 0:00:54]} b4 {[%emt 0:00:02]}
15. Nce2 {[%emt 0:01:45]} Nc4 {[%emt 0:00:34]} 16. Bxc4 {[%emt 0:00:05]} Rxc4 {
[%emt 0:00:01]} 17. Kb1 {[%emt 0:00:04]} Rac8 {[%emt 0:01:12]} 18. hxg6 {[%emt
0:02:32]} fxg6 {[%emt 0:00:02]} 19. Rc1 {[%emt 0:01:27]} Qe5 {[%emt 0:01:53]}
20. Bf4 {[%emt 0:01:37]} Nxe4 {[%emt 0:01:35]} 21. fxe4 {[%emt 0:00:27]} Qxe4 {
[%emt 0:00:01]} 22. Be3 {[%emt 0:04:14]} Bxg4 {[%emt 0:00:03]} 23. Rh4 {[%emt
0:00:22]} h5 {[%emt 0:01:30]} 24. Qd3 {[%emt 0:02:59]} Qxd3 {[%emt 0:04:57]}
25. cxd3 {[%emt 0:00:01]} Rxc1+ {[%emt 0:00:02]} 26. Nxc1 {[%emt 0:00:02]} a5 {
[%emt 0:00:01]} 27. Rh1 {[%emt 0:01:04]} e5 {[%emt 0:01:32]} 28. Nb5 {[%emt 0:
00:34]} Bf8 {[%emt 0:00:02]} 29. Na7 {[%emt 0:00:20]} Rc7 {[%emt 0:00:10]} 30.
Nb5 {[%emt 0:00:05]} Rb7 {[%emt 0:01:43]} 31. a4 {[%emt 0:00:01]} bxa3 {[%emt
0:00:04]} 32. Nxa3 {[%emt 0:00:01]} d5 33. Ka2 d4 {[%emt 0:00:38]} 34. Bd2 {
[%emt 0:00:11]} Be6+ {[%emt 0:00:03]} 35. Ka1 {[%emt 0:00:07]} a4 {[%emt 0:00:
49]} 36. Re1 {[%emt 0:00:01]} Bd6 {[%emt 0:02:42]} 37. Bg5 {[%emt 0:00:09]} Kf7
{[%emt 0:00:06]} 38. Rf1+ {[%emt 0:00:42]} Bf5 {[%emt 0:00:01]} 39. Nc4 {[%emt
0:00:03]} Bc7 {[%emt 0:00:01]} 40. Re1 {[%emt 0:00:22]} Rb5 {[%emt 0:00:00]}
41. Kb1 {[%emt 0:00:16]} Rc5 {[%emt 0:00:14]} 42. Nd2 {[%emt 0:00:11]} Ba5 {
[%emt 0:00:24]} 43. Re2 {[%emt 0:00:01]} Bxd2 {[%emt 0:00:17]} 44. Bxd2 {[%emt
0:00:16]} h4 {[%emt 0:00:08]} 45. Bg5 {[%emt 0:00:13]} h3 {[%emt 0:00:02]} 46.
Ka2 {[%emt 0:00:10]} e4 {[%emt 0:00:09]} 47. Bf4 {[%emt 0:00:13]} exd3 {[%emt
0:00:31]} 48. Rf2 {[%emt 0:00:10]} Ke6 {[%emt 0:00:22]} 49. Ka3 {[%emt 0:00:06]
} Rc4 {[%emt 0:00:25]} 50. Rh2 {[%emt 0:00:17]} Kd5 {[%emt 0:00:11]} 51. Nxd3 {
[%emt 0:00:07]} Bxd3 {[%emt 0:00:01]} 52. Rxh3 {[%emt 0:00:01]} Bf5 {[%emt 0:
00:05]} 53. Bd2 {[%emt 0:00:08]} Rc2 {[%emt 0:00:07]} 54. Rh2 {[%emt 0:00:07]}
Kc4 {[%emt 0:00:14]} 55. Rg2 {[%emt 0:00:16]} Kd3 {[%emt 0:00:12]} 0-1